{"text_format":"1","workbook":"xlsx","n_sheets":1,"sheets":["ППР 2 квартал "],"not_rendered":{"charts":0,"images":0,"macros":1,"external_links":1,"defined_names":13,"comments":0,"pivot_tables":0},"unopened":[],"bounds":{"document_bytes":16777216,"sheet_cells":100000,"rows_first":2000,"rows_last":500,"rows_between":2000,"halvings":0,"cell_chars":16384,"cell_head_chars":4096},"cells_cut":0,"cells_raw":0,"read":"whole","date_system":"1900"}

{"sheet":"ППР 2 квартал ","index":0,"n_rows":66,"n_cols":10,"rows_kept":66,"cut":false,"hidden":false,"merged":[[20,0,20,9],[0,4,0,5],[1,4,1,5],[2,4,2,5],[3,4,3,5],[6,0,7,9],[8,0,9,0],[8,1,8,3],[8,4,9,4],[8,5,9,5],[8,6,9,6],[8,7,9,7],[8,8,9,8],[8,9,9,9],[10,0,10,9],[11,0,11,9],[45,0,45,9],[51,0,51,9],[54,0,54,9],[58,0,58,9],[26,0,26,9],[28,0,28,9],[32,0,32,9],[36,0,36,9],[40,0,40,9],[41,0,41,9]]}
[]
[]
[]
[]
[]
[]
["ПЛАН -ГРАФИК технического обслуживания  и планово-предупредительного ремонта на объекте: г. Москва, 1-ый Котляковский пер. д.2, во II квартале 2019 г. "]
[]
["№ п/п","Дата проведения работ",null,null,"Наименование работ по ППР","Периодичность ","Исполнитель","Ответственный","Статус выполнения","Фото"]
[null,"апрель","май","июнь"]
["I. СИСТЕМА ЭЛЕКТРОСНАБЖЕНИЯ И ОСВЕЩЕНИЯ"]
["1.1. Главное распределительное устройство"]
[1,{"$f":"[1]апрель!B6","v":"02.09.16.23.30."},{"$f":"[1]май!B6","v":"06.13.20.27."},{"$f":"[1]июнь!B6","v":"04.11.18.25."},"Визуальный осмотр оборудования и устранение видимых неисправностей","ТО-1","Техник-электрик",{"$f":"[1]апрель!C58","v":"Главный-энергетик"},"Выполнено",1]
[2,{"$f":"[1]апрель!B7","v":"2019-04-26"},{"$f":"[1]май!B7","v":"2019-05-24"},{"$f":"[1]июнь!B7","v":"2019-06-28"},"Устранение загрязнений в шкафах, щитах и панелях","ТО-2","Техник-электрик",{"$f":"H13","v":"Главный-энергетик"},"Выполнено",2]
[3,{"$f":"[1]апрель!B8","v":"2019-04-24"},{"$f":"[1]май!B8","v":"2019-05-29"},{"$f":"[1]июнь!B8","v":"2019-06-28"},"Протоколирование показаний счетчиков электроэнергии (последняя неделя месяца)","ТО-2","Техник-электрик",{"$f":"H13","v":"Главный-энергетик"},"Выполнено",3]
[4,null,null,null,"Осмотр средств защиты, пожаротушения и оказания первой помощи (наличие и комплектность).","ТО-2","Техник","Главный энергетик ","Выполнено"]
[5,null,null,null,"Проверка технического состояния помещения (убедиться в исправности дверей, замков, отсутствии течей с перекрытий).","ТО-2","Техник","Главный энергетик ","Выполнено"]
[6,null,null,null,"Проведение уборки в помещении (включая мытьё диэлектрических ковров).","ТО-2","Техник","Главный энергетик ","Выполнено"]
[7,null,null,null,"Измерение температуры контактов, кабелей и шин (дистанционным измерителем температуры) ","ТО-5"]
[8,null,null,null,"Протяжка контактных соединений ","ТО-5"]
["1.2. Вспомогательные распределительные устройства"]
[1,{"$f":"[1]апрель!B10","v":"02.09.16.23.30."},{"$f":"[1]май!B10","v":"06.13.20.27."},{"$f":"[1]июнь!B10","v":"04.11.18.25."},"Визуальный осмотр оборудования и устранение видимых неисправностей","ТО-1","Техник",{"$f":"H13","v":"Главный-энергетик"},"Выполнено",4]
[2,{"$f":"[1]апрель!B11","v":"2019-04-26"},{"$f":"[1]май!B11","v":"2019-05-24"},{"$f":"[1]июнь!B11","v":"2019-06-28"},"Устранение загрязнений в шкафах, щитах и панелях","ТО-2","Техник",{"$f":"H13","v":"Главный-энергетик"},"Выполнено",5]
[3,"-",{"$f":"[1]май!B12","v":"2019-05-29"},"-","Проверка функционирования УЗО","ТО-3","Техник",{"$f":"H13","v":"Главный-энергетик"},"Выполнено",6]
[4,null,null,null,"Измерение температуры контактов, кабелей и шин (дистанционным измерителем температуры) ","ТО-5"]
[5,null,null,null,"Протяжка контактных соединений ","ТО-5"]
["1.3. Система внутреннего электроснабжения"]
[1,{"$f":"[1]апрель!B13","v":"02.09.16.23.30."},{"$f":"[1]май!B14","v":"06.13.20.27."},{"$f":"[1]июнь!B13","v":"04.11.18.25."},"Проверка общего состояния и устранение видимых неисправностей и загрязнения розеток, выключателей","ТО-1","Техник",{"$f":"H14","v":"Главный-энергетик"},"Выполнено",7]
["1.4. Внутреннее освещение"]
[1,{"$f":"[1]апрель!B15","v":"03.10.17.24."},{"$f":"[1]май!B16","v":"08.15.22.29."},{"$f":"[1]июнь!B15","v":"05.12.19.26."},"Визуальный осмотр оборудования и устранение видимых неисправностей","ТО-1","Техник",{"$f":"H13","v":"Главный-энергетик"},"Выполнено",8]
[2,{"$f":"[1]апрель!B16","v":"03.10.17.24."},{"$f":"[1]май!B17","v":"08.15.22.29."},{"$f":"[1]июнь!B16","v":"05.12.19.26."},"Замена ламп (при замене ламп проводится обязательная чистка светильников)","при необходимости","Техник",{"$f":"H13","v":"Главный-энергетик"},"Выполнено",9]
[4,null,null,null,"Утилизация люминесцентных ламп","ТО-5","Техник","Главный энергетик ","Выполнено"]
["1.5. Аварийное освещение (эвакуационные выходы)"]
[1,{"$f":"[1]апрель!B18","v":"05.12.19.26."},{"$f":"[1]май!B19","v":"03.10.17.24.31."},{"$f":"[1]июнь!B18","v":"07.14.21.28."},"Визуальный осмотр оборудования и устранение видимых неисправностей","ТО-1","Техник-электрик",{"$f":"H13","v":"Главный-энергетик"},"Выполнено",10]
[2,null,null,null,"Замена ламп (при замене ламп проводится обязательная чистка светильников)","при необходимости","Техник-электрик","Главный энергетик ","Выполнено"]
[5,null,null,null,"Утилизация люминесцентных ламп","ТО-5","Техник","Главный энергетик ","Выполнено"]
["1.5. Водонагреватели"]
[1,null,null,null,"Осмотр и устранение видимых неисправностей (убедиться в наличии маркировки и полной комплектности; убедиться в отсутствии перегрева и повреждений).","ТО-0","Техник","Главный энергетик ","Выполнено"]
[2,null,null,null,"Устранение загрязнений электротехнической части оборудования.","ТО-4","Техник","Главный энергетик ","Выполнено"]
[3,null,null,null,"Протяжка контактных соединений.","ТО-4","Техник","Главный энергетик ","Выполнено"]
["II. СИСТЕМА ТЕПЛОСНАБЖЕНИЯ"]
[" Общие мероприятия:"]
[1,{"$f":"[1]апрель!B22","v":"Ежедневно"},{"$f":"[1]май!B23","v":"Ежедневно"},{"$f":"[1]июнь!B22","v":"Ежедневно"},"Ежедневный контроль технического состояния.","ТО-0","Техник-сантехник","Инженер-теплотехник","Выполнено",11]
[2,{"$f":"[1]апрель!B23","v":"Ежедневно"},{"$f":"[1]май!B24","v":"Ежедневно"},{"$f":"[1]июнь!B23","v":"Ежедневно"},"Поддержание рабочих параметров, регламентированных режимными картами.","ТО-0","Техник-сантехник","Инженер-теплотехник","Выполнено",12]
[2,{"$f":"[1]апрель!B24","v":"2019-04-25"},{"$f":"[1]май!B25","v":"2019-05-29"},{"$f":"[1]апрель!B24","v":"2019-04-25"},"Регулировка и наладка систем центрального отопления.","ТО-2","Техник-сантехник","Инженер-теплотехник","Выполнено",13]
["2.1. Система теплоснабжения радиаторного отопления"]
[1,{"$f":"[1]апрель!B38","v":"02.09.16.23.30."},{"$f":"[1]май!B39","v":"07.14.21.28."},{"$f":"[1]июнь!B38","v":"04.11.18.25."},"Визуальный осмотр оборудования и устранение видимых неисправностей","ТО-1","Техник-сантехник","Инженер-теплотехник","Выполнено",14]
[2,{"$f":"[1]апрель!B39","v":"2019-01-18"},{"$f":"[1]май!B40","v":"2019-05-28"},{"$f":"[1]июнь!B39","v":"2019-06-21"},"Контроль работы предохранительных и регулирующих устройств","ТО-2","Техник-сантехник","Инженер-теплотехник","Выполнено",15]
[3,{"$f":"[1]апрель!B40","v":"2019-01-18"},{"$f":"[1]май!B41","v":"2019-05-28"},{"$f":"[1]июнь!B40","v":"2019-06-21"},"Осмотр трубопроводов и радиаторов отопления на наличие течи","ТО-2","Техник-сантехник","Инженер-теплотехник","Выполнено",16]
[4,{"$f":"[1]апрель!B40","v":"2019-01-18"},{"$f":"[1]май!B42","v":"2019-05-28"},{"$f":"[1]июнь!B41","v":"2019-06-21"},"Осмотр фланцевых и резьбовых соединений (при необходимости протяжка)","ТО-2","Техник-сантехник","Инженер-теплотехник","Выполнено",17]
[5,{"$f":"[1]апрель!B42","v":"2019-01-18"},{"$f":"[1]май!B43","v":"2019-05-28"},{"$f":"[1]июнь!B42","v":"2019-06-21"},"Проверка на наличие коррозии","ТО-2","Техник-сантехник","Инженер-теплотехник","Выполнено",18]
["III. СИСТЕМА  ВОДОСНАБЖЕНИЯ И ВОДООТВЕДЕНИЯ"]
[1,{"$f":"[1]апрель!B45","v":"Ежедневно"},{"$f":"[1]май!B46","v":"Ежедневно"},{"$f":"[1]июнь!B45","v":"Ежедневно"},"Ежедневный контроль технического состояния.","ТО-0","Техник-сантехник","Инженер-теплотехник","Выполнено",19]
[2,{"$f":"[1]апрель!B47","v":"-"},{"$f":"[1]май!B48","v":"-"},{"$f":"[1]июнь!B47","v":"-"},"Устранение в течение одного рабочего дня незначительных неисправностей в системах водоснабжения и канализации (замена прокладок в водопроводных кранах, замена отдельных водоразборных кранов, смесителей, запорной арматуры, уплотнение сгонов, устранение засоров, регулировка клапанов смывных бачков, прочистка сифонов, замена и набивка сальников, замена поплавкового клапана, замена манжет и сливного клапана, чистка бачков от известковых отложений). ","по необходимости","Техник-сантехник","Инженер-теплотехник","Выполнено",20]
["3.1. Водопровод хозяйственно-питьевой, включая все вентили задвижки и клапана."]
[1,{"$f":"[1]апрель!B50","v":"Ежедневно"},{"$f":"[1]май!B51","v":"Ежедневно"},{"$f":"[1]июнь!B50","v":"Ежедневно"},"Проверка общего технического состояния трубопроводов и арматуры,  устранение видимых неисправностей.","ТО-0","Техник-сантехник","Инженер-теплотехник","Выполнено",21]
[2,"-",{"$f":"[1]май!B53","v":"2019-05-16"},"-","Чистка фильтров жесткой очистки.","ТО-3","Техник-сантехник","Инженер-теплотехник","Выполнено",22]
[3,{"$f":"[1]апрель!B51","v":"2019-04-25"},{"$f":"[1]май!B52","v":"2019-05-23"},{"$f":"[1]июнь!B51","v":"2019-06-20"},"Проверка креплений сантехнических приборов в местах их присоединения (при необходимости протяжка)","ТО-2","Техник-сантехник","Инженер-теплотехник","Выполнено",23]
["3.3.  Система приема и удаления бытовых сточных вод (канализация бытовая)."]
[1,{"$f":"[1]июнь!B54","v":"2019-06-28"},{"$f":"[1]май!B56","v":"2019-05-27"},{"$f":"[1]июнь!B54","v":"2019-06-28"},"Визуальный осмотр и устранение видимых неисправностей","ТО-2","Техник-сантехник","Инженер-теплотехник","Выполнено",24]
[2,"-",{"$f":"[1]май!B57","v":"2019-05-27"},"-","Прочистка, промывка внутренней канализации","ТО-3","Техник-сантехник","Инженер-теплотехник","Выполнено",25]
[3,"-",{"$f":"[1]май!B58","v":"2019-05-27"},"-","Прочистка, промывка дворовой канализации","ТО-3","Техник-сантехник","Инженер-теплотехник","Выполнено",26]
[]
[null,null,null,"Главный-энергетик",null,"Бритвин Р.В."]
[]
[null,null,null,"Инженер-теплотехник",null,"Фомин Н.Н."]